bitfinex-derivatives/quotes_BTCF0:USTF0_20260111
["timestamp","ask_amount","ask_price","bid_price","bid_amount"]
[1768123105434,0.09957266,90842.0,90832.0,0.011023]
[1768123106729,0.09957266,90842.0,90823.0,0.0787751]
[1768123106730,0.09957266,90842.0,90833.0,0.011023]
[1768123107433,0.09957266,90842.0,90834.0,0.011023]
[1768123107733,0.10591037,90843.0,90831.0,0.011023]
[1768123108132,0.20548303,90843.0,90831.0,0.011023]
[1768123110638,0.19446103,90843.0,90833.0,0.011023]
[1768123111429,0.19446103,90843.0,90824.0,0.0817271]
[1768123112036,0.19446103,90843.0,90833.0,0.011023]
[1768123112225,0.09957266,90842.0,90833.0,0.011023]
[1768123112930,0.09957266,90842.0,90834.0,0.011023]
[1768123114520,0.09957266,90842.0,90824.0,0.011024]
[1768123114722,0.09957266,90842.0,90835.0,0.011023]
[1768123115138,0.09957266,90842.0,90833.0,0.011023]
[1768123115437,0.011022,90841.0,90830.0,0.011023]
[1768123115628,0.09957266,90842.0,90831.0,0.011023]
[1768123115829,0.1110964,90845.0,90830.0,0.15155172]
[1768123116037,0.2047764,90845.0,90830.0,0.15155172]
[1768123116233,0.2047764,90845.0,90834.0,0.011023]
[1768123117536,0.1937544,90845.0,90834.0,0.011023]
[1768123118638,0.1937544,90845.0,90830.0,0.12057472]
[1768123119643,0.1937544,90845.0,90833.0,0.011023]
[1768123121041,0.09457049,90844.0,90833.0,0.011023]
[1768123122742,0.09457049,90844.0,90834.0,0.011023]
[1768123122936,0.09457049,90844.0,90835.0,0.011023]
[1768123123641,0.09457049,90844.0,90830.0,0.15155172]
[1768123124943,0.09457049,90844.0,90825.0,0.011024]
[1768123125141,0.09457049,90842.0,90825.0,0.011024]
[1768123125343,0.18749436,90841.0,90825.0,0.011024]
[1768123126746,0.09918391,90845.0,90827.0,0.011024]
[1768123127130,0.1937544,90845.0,90836.0,0.011023]
[1768123127332,0.09457049,90844.0,90836.0,0.011023]
[1768123127737,0.09457049,90843.0,90836.0,0.011023]
[1768123130149,0.09457049,90843.0,90834.0,0.011023]
[1768123130751,0.09457049,90843.0,90824.0,0.07088016]
[1768123130942,0.18749436,90843.0,90834.0,0.011023]
[1768123131142,0.09457049,90842.0,90834.0,0.011023]
[1768123131649,0.09457049,90842.0,90832.0,0.011023]
[1768123131849,0.09457049,90842.0,90824.0,0.011024]
[1768123132346,0.09457049,90842.0,90823.0,0.09810041]
[1768123132554,0.09457049,90841.0,90823.0,0.09810041]
[1768123132851,0.09457049,90840.0,90831.0,0.011023]
[1768123133247,0.09457049,90840.0,90832.0,0.011023]
[1768123133649,0.09457049,90840.0,90821.0,0.011024]
[1768123133856,0.09457049,90839.0,90821.0,0.011024]
[1768123134156,0.09457049,90839.0,90830.0,0.011023]
[1768123134453,0.09457049,90839.0,90831.0,0.011023]
[1768123136658,0.09457049,90839.0,90832.0,0.011023]
[1768123137155,0.18749436,90830.0,90798.0,0.22070232]
[1768123137348,0.18749436,90813.0,90798.0,0.00242297]
[1768123137656,0.15155172,90810.0,90798.0,0.01344997]
[1768123137846,0.15155172,90810.0,90798.0,0.00242297]
[1768123138046,0.011026,90809.0,90798.0,0.00242297]
[1768123138266,0.18749436,90811.0,90798.0,0.01344997]
[1768123138552,0.09457049,90810.0,90798.0,0.01344997]
[1768123138948,0.24612221,90810.0,90798.0,0.00242297]
[1768123139750,0.09457049,90810.0,90798.0,0.00242297]
[1768123139956,0.19446631,90809.0,90798.0,0.00242297]
[1768123140258,0.09764874,90807.0,90798.0,0.00242297]
[1768123141665,0.09764874,90807.0,90799.0,0.011027]
[1768123142172,0.09764874,90807.0,90798.0,0.00242297]
[1768123142371,0.09681757,90808.0,90798.0,0.00242297]
[1768123142878,0.09681757,90808.0,90799.0,0.011027]
[1768123143168,0.09681757,90808.0,90798.0,0.00242297]
[1768123143364,0.09681757,90808.0,90798.0,0.01344997]
[1768123147470,0.09681757,90808.0,90800.0,0.011027]
[1768123148159,0.09681757,90808.0,90798.0,0.00242297]
[1768123148866,0.09681757,90808.0,90799.0,0.011027]
[1768123149971,0.09681757,90808.0,90798.0,0.00242297]
[1768123150176,0.09534171,90817.0,90798.0,0.15397469]
[1768123150376,0.09534171,90815.0,90798.0,0.15397469]
[1768123150677,0.10636671,90815.0,90803.0,0.011027]
[1768123151375,0.09534171,90815.0,90803.0,0.011027]
[1768123152077,0.09534171,90814.0,90803.0,0.011027]
[1768123152575,0.09534171,90814.0,90798.0,0.00242297]
[1768123152775,0.09534171,90814.0,90801.0,0.011027]
[1768123153177,0.09534171,90814.0,90802.0,0.011027]
[1768123154276,0.09534171,90814.0,90798.0,0.00242297]
[1768123154277,0.09534171,90814.0,90804.0,0.011027]
[1768123154877,0.09534171,90814.0,90803.0,0.011027]
[1768123156973,0.011025,90815.0,90802.0,0.011027]
[1768123157375,0.10636671,90815.0,90800.0,0.15155172]
[1768123158382,0.10636671,90815.0,90803.0,0.011027]
[1768123159585,0.09534171,90815.0,90800.0,0.15155172]
[1768123160684,0.09534171,90815.0,90805.0,0.011026]
[1768123160883,0.10636671,90815.0,90803.0,0.011027]
[1768123161285,0.09534171,90815.0,90805.0,0.011026]
[1768123163283,0.09534171,90815.0,90804.0,0.011026]
[1768123164279,0.011025,90816.0,90804.0,0.011026]
[1768123164483,0.011025,90816.0,90805.0,0.011026]
[1768123165086,0.10636671,90816.0,90805.0,0.011026]
[1768123165476,0.09534171,90816.0,90805.0,0.011026]
[1768123166780,0.09534171,90816.0,90798.0,0.09376732]
[1768123168489,0.09534171,90816.0,90806.0,0.011026]
[1768123169389,0.09534171,90816.0,90798.0,0.09376732]
[1768123169390,0.09534171,90816.0,90807.0,0.011026]
[1768123169592,0.09534171,90816.0,90808.0,0.011026]
[1768123170086,0.09534171,90823.0,90804.0,0.011026]
[1768123170291,0.09534171,90823.0,90813.0,0.011025]
[1768123171089,0.09534171,90833.0,90813.0,0.18434346]
[1768123171387,0.10636371,90841.0,90826.0,0.011024]
[1768123171583,0.09534171,90837.0,90817.0,0.011025]
[1768123172679,0.09534171,90837.0,90825.0,0.011024]
[1768123172878,0.09534171,90837.0,90816.0,0.09372]
[1768123172879,0.09534171,90836.0,90816.0,0.09372]
[1768123173083,0.09534171,90836.0,90823.0,0.011024]
[1768123173292,0.09534171,90836.0,90825.0,0.011024]
[1768123173789,0.09177935,90835.0,90825.0,0.011024]
[1768123175391,0.09177935,90834.0,90824.0,0.011024]
[1768123176792,0.09177935,90834.0,90826.0,0.011024]
[1768123178890,0.09177935,90834.0,90816.0,0.18637681]
[1768123179286,0.09539138,90840.0,90827.0,0.011024]
[1768123179495,0.09177935,90839.0,90827.0,0.011024]
[1768123179696,0.09177935,90838.0,90827.0,0.011024]
[1768123179896,0.09177935,90838.0,90816.0,0.23131889]
[1768123180199,0.18717073,90838.0,90816.0,0.23131889]
[1768123180398,0.09177935,90837.0,90816.0,0.23131889]
[1768123181197,0.09177935,90837.0,90826.0,0.011024]
[1768123183202,0.09177935,90837.0,90828.0,0.011024]
[1768123184405,0.09728326,90845.0,90834.0,0.011023]
[1768123184705,0.09177935,90843.0,90832.0,0.011023]
[1768123186902,0.09177935,90843.0,90826.0,0.073743]
[1768123187806,0.09177935,90843.0,90834.0,0.011023]
[1768123188704,0.09177935,90843.0,90836.0,0.011023]
[1768123192810,0.00550391,90845.0,90836.0,0.011023]
[1768123193109,0.00550391,90845.0,90837.0,0.011022]
[1768123193610,0.09728326,90845.0,90837.0,0.011022]
[1768123194007,0.09728326,90845.0,90826.0,0.073743]
[1768123194509,0.09728326,90845.0,90826.0,0.26529289]
[1768123195000,0.00550391,90845.0,90830.0,0.011023]
[1768123195206,0.00550391,90845.0,90841.0,0.011022]
[1768123196112,0.00550391,90845.0,90830.0,0.011023]
[1768123197107,0.00550391,90845.0,90838.0,0.011022]
[1768123197509,0.00550391,90845.0,90833.0,0.09889308]
[1768123197713,0.10280035,90853.0,90840.0,0.011022]
[1768123197914,0.19819173,90853.0,90840.0,0.011022]
[1768123198115,0.09177935,90852.0,90842.0,0.011022]
[1768123199613,0.09368,90855.0,90847.0,0.011021]
[1768123199805,0.18545935,90855.0,90847.0,0.011021]
[1768123200005,0.09177935,90854.0,90847.0,0.011021]
[1768123200315,0.09177935,90854.0,90848.0,0.011021]
[1768123201112,0.09177935,90854.0,90835.0,0.19154989]
[1768123201512,0.09177935,90854.0,90846.0,0.011021]
[1768123203120,0.09177935,90854.0,90844.0,0.011022]
[1768123203807,0.09177935,90854.0,90845.0,0.011021]
[1768123204503,0.09177935,90854.0,90837.0,0.011022]
[1768123207113,0.09177935,90854.0,90846.0,0.011021]
[1768123208119,0.09177935,90854.0,90836.0,0.09368]
[1768123208719,0.09177935,90854.0,90836.0,0.06368]
[1768123209117,0.09110834,90852.0,90836.0,0.06368]
[1768123209419,0.09110834,90852.0,90842.0,0.011022]
[1768123210520,0.09110834,90852.0,90837.0,0.011022]
[1768123210720,0.10212934,90850.0,90837.0,0.011022]
[1768123212623,0.10212934,90850.0,90838.0,0.011022]
[1768123215533,0.09110834,90850.0,90839.0,0.011022]
[1768123216530,0.09110834,90850.0,90836.0,0.053702]
[1768123216730,0.10212934,90849.0,90836.0,0.053702]
[1768123216928,0.09110834,90849.0,90836.0,0.053702]
[1768123217133,0.09110834,90853.0,90843.0,0.011022]
[1768123217429,0.09110834,90853.0,90837.0,0.011023]
[1768123217624,0.09110834,90853.0,90846.0,0.011021]
[1768123218729,0.09110834,90857.0,90841.0,0.011022]
[1768123219032,0.09110834,90857.0,90838.0,0.18463518]
[1768123219033,0.09319586,90856.0,90840.0,0.011022]
[1768123219233,0.1843042,90856.0,90838.0,0.18463518]
[1768123219438,2e-07,90856.0,90853.0,0.011021]
[1768123219729,2e-07,90856.0,90854.0,0.01102]
[1768123219924,0.00117721,90858.0,90852.0,0.011021]
[1768123220525,2.1e-07,90858.0,90855.0,0.01102]
[1768123222232,2.1e-07,90858.0,90853.0,0.01102]
[1768123222426,2.1e-07,90858.0,90845.0,0.0925188]
[1768123222427,2.1e-07,90858.0,90854.0,0.01102]
[1768123223235,2.1e-07,90858.0,90845.0,0.0925188]
[1768123223236,2.1e-07,90858.0,90852.0,0.011021]
[1768123223638,2.1e-07,90858.0,90845.0,0.0705398]
[1768123225138,2.1e-07,90858.0,90851.0,0.011021]
[1768123225738,2.1e-07,90858.0,90845.0,0.0705398]
[1768123225739,2.1e-07,90858.0,90852.0,0.011021]
[1768123229744,0.09110834,90872.0,90851.0,0.0925188]
[1768123229939,0.10212734,90868.0,90851.0,0.0925188]
[1768123230942,0.09110834,90868.0,90851.0,0.0925188]
[1768123231139,0.10212734,90868.0,90851.0,0.0925188]
[1768123231638,0.011019,90867.0,90854.0,0.01102]
[1768123232238,0.011019,90867.0,90855.0,0.01102]
[1768123232541,0.09110834,90868.0,90855.0,0.01102]
[1768123235247,0.09110834,90868.0,90851.0,0.0925188]
[1768123236147,0.09110834,90868.0,90855.0,0.01102]
[1768123237150,0.09110834,90868.0,90856.0,0.01102]
[1768123237349,0.10212734,90868.0,90851.0,0.0925188]
[1768123237848,0.10212734,90868.0,90856.0,0.01102]
[1768123238441,0.10212734,90868.0,90854.0,0.01102]
[1768123238650,0.10212734,90868.0,90855.0,0.01102]
[1768123240752,0.10212734,90868.0,90851.0,0.0695388]
[1768123240937,0.10212734,90868.0,90856.0,0.01102]
[1768123242049,0.011019,90866.0,90853.0,0.011021]
[1768123242239,0.10212734,90868.0,90851.0,0.0695388]
[1768123243143,0.10212734,90868.0,90855.0,0.01102]
[1768123243343,0.09110834,90868.0,90851.0,0.0695388]
[1768123243948,0.011019,90867.0,90855.0,0.01102]
[1768123244148,0.09110834,90868.0,90855.0,0.01102]
[1768123244848,0.09110834,90868.0,90856.0,0.01102]
[1768123245850,0.09110834,90868.0,90857.0,0.01102]
[1768123247542,0.09110834,90868.0,90858.0,0.01102]
[1768123247851,0.09110834,90868.0,90851.0,0.0595588]
[1768123249252,0.09110834,90868.0,90858.0,0.01102]
[1768123257356,0.09110834,90868.0,90851.0,0.0595588]
[1768123257556,0.09110834,90868.0,90855.0,0.01102]
[1768123259057,0.10212734,90868.0,90855.0,0.01102]
[1768123259459,0.10212734,90868.0,90852.0,0.011021]
[1768123259761,0.10212734,90868.0,90854.0,0.01102]
[1768123261963,0.10212734,90868.0,90851.0,0.0485788]
[1768123262263,0.10212734,90868.0,90854.0,0.01102]
[1768123262962,0.09110834,90868.0,90852.0,0.011021]
[1768123263266,0.09907502,90867.0,90856.0,0.01102]
[1768123263450,0.09907502,90867.0,90851.0,0.0485788]
[1768123263451,0.011019,90866.0,90851.0,0.0485788]
[1768123264857,0.011019,90866.0,90853.0,0.011021]
[1768123265059,0.10712305,90873.0,90859.0,0.01102]
[1768123265260,0.17610505,90873.0,90860.0,0.15147459]
[1768123265458,0.12500505,90873.0,90859.0,0.01102]
[1768123266165,0.08,90873.0,90861.0,0.01102]
[1768123268164,0.08,90873.0,90854.0,0.1911856]
[1768123268165,0.08,90873.0,90863.0,0.011019]
[1768123268766,0.08,90873.0,90854.0,0.1911856]
[1768123269470,0.08,90873.0,90860.0,0.01102]
[1768123269669,0.15338841,90873.0,90854.0,0.1612056]
[1768123270469,0.0734109,90872.0,90854.0,0.1612056]
[1768123270672,0.1534109,90872.0,90854.0,0.1612056]
[1768123271174,0.1534109,90872.0,90860.0,0.01102]
[1768123271980,0.1534109,90872.0,90854.0,0.1612056]
[1768123273468,0.1534109,90872.0,90857.0,0.01102]
[1768123273666,0.07225905,90871.0,90857.0,0.01102]
[1768123273866,0.15327705,90871.0,90857.0,0.01102]
[1768123274065,0.14225905,90871.0,90858.0,0.01102]
[1768123274770,0.14225905,90871.0,90860.0,0.01102]
[1768123276669,0.14225905,90871.0,90854.0,0.06403253]
[1768123278077,0.14225905,90871.0,90860.0,0.01102]
[1768123282983,0.14225905,90871.0,90861.0,0.01102]
[1768123283979,0.14225905,90871.0,90854.0,0.03305253]
[1768123284177,0.14225905,90871.0,90861.0,0.01102]
[1768123286283,0.07,90871.0,90861.0,0.01102]
[1768123288280,0.07,90871.0,90858.0,0.01102]
[1768123289084,0.07,90871.0,90854.0,0.12522316]
[1768123289484,0.07,90871.0,90860.0,0.01102]
[1768123290988,0.07,90871.0,90854.0,0.11124316]
[1768123291178,0.07,90871.0,90860.0,0.01102]
[1768123291379,0.07,90871.0,90854.0,0.11124316]
[1768123291678,0.07,90871.0,90861.0,0.01102]
[1768123296694,0.07,90871.0,90864.0,0.011019]
[1768123297392,0.07,90871.0,90854.0,0.11124316]
[1768123297693,0.07,90871.0,90862.0,0.011019]
[1768123298093,0.07,90871.0,90854.0,0.09826216]
[1768123298392,0.07,90871.0,90861.0,0.01102]
[1768123298692,0.07,90871.0,90862.0,0.011019]
[1768123302005,0.07,90871.0,90859.0,0.01102]
[1768123302195,0.07,90871.0,90852.0,0.09368]
[1768123302397,0.07966364,90870.0,90852.0,0.09368]
[1768123302698,0.14966364,90870.0,90859.0,0.01102]
[1768123304498,0.14966364,90870.0,90858.0,0.01102]
[1768123304700,0.14966364,90870.0,90852.0,0.09368]
[1768123304701,0.14966364,90870.0,90859.0,0.01102]
[1768123304890,0.23976991,90870.0,90859.0,0.01102]
[1768123305198,0.23976991,90870.0,90852.0,0.0837]
[1768123305793,0.011019,90868.0,90852.0,0.0837]
[1768123306000,0.18078891,90870.0,90856.0,0.01102]
[1768123306194,0.07974568,90869.0,90857.0,0.01102]
[1768123306694,0.09076468,90869.0,90852.0,0.0837]
[1768123306900,0.07974568,90869.0,90852.0,0.0837]
[1768123309199,0.07974568,90869.0,90859.0,0.01102]
[1768123310703,0.07974568,90869.0,90861.0,0.01102]
[1768123312300,0.07974568,90869.0,90862.0,0.011019]
[1768123312504,0.07974568,90869.0,90854.0,0.01102]
[1768123313106,0.09010627,90870.0,90854.0,0.01102]
[1768123313408,0.17010627,90870.0,90854.0,0.01102]
[1768123313998,0.17010627,90870.0,90862.0,0.011019]
[1768123314709,0.25336769,90870.0,90862.0,0.011019]
[1768123315203,0.011018,90874.0,90866.0,0.011019]
[1768123315204,0.08326142,90874.0,90866.0,0.011019]
[1768123315394,0.08326142,90878.0,90860.0,0.09162894]
[1768123315600,0.09010627,90881.0,90862.0,0.011019]
[1768123315799,0.08326142,90880.0,90862.0,0.011019]
[1768123316003,0.08326142,90880.0,90863.0,0.011019]
[1768123316207,0.0832252,90879.0,90871.0,0.011018]
[1768123317408,0.0832252,90879.0,90861.0,0.01102]
[1768123318008,0.0832252,90879.0,90870.0,0.011018]
[1768123319297,0.0832252,90879.0,90860.0,0.09064794]
[1768123320206,0.0832252,90879.0,90867.0,0.011019]
[1768123321412,0.0832252,90879.0,90860.0,0.09064794]
[1768123322014,0.17333147,90879.0,90860.0,0.09064794]
[1768123322415,0.17333147,90879.0,90868.0,0.011019]
[1768123323331,0.17333147,90879.0,90848.0,0.09368]
[1768123323332,0.08397814,90862.0,90848.0,0.09368]
[1768123323624,0.01102,90860.0,90849.0,0.09368]
[1768123324412,0.01102,90860.0,90848.0,0.09368]
[1768123327025,0.01102,90860.0,90846.0,0.011021]
[1768123327225,0.01102,90860.0,90847.0,0.09368]
[1768123328018,0.08397814,90862.0,90849.0,0.011021]
[1768123328211,0.01102,90861.0,90847.0,0.09368]
[1768123329022,0.01102,90861.0,90847.0,0.104701]
[1768123329221,0.08397814,90862.0,90848.0,0.011021]
[1768123329422,0.08397814,90862.0,90849.0,0.011021]
[1768123330615,0.011019,90866.0,90848.0,0.09781408]
[1768123330811,0.07997171,90869.0,90848.0,0.09781408]
[1768123331112,0.07997171,90868.0,90848.0,0.09781408]
[1768123331718,0.07997171,90867.0,90848.0,0.09781408]
[1768123333116,0.011019,90865.0,90848.0,0.09781408]
[1768123333323,0.01102,90861.0,90847.0,0.104701]
[1768123335122,0.10460506,90863.0,90848.0,0.011021]
[1768123335312,0.10460506,90863.0,90849.0,0.011021]
[1768123338520,0.01102,90860.0,90845.0,0.011022]
[1768123338715,0.09270086,90859.0,90846.0,0.09368]
[1768123340016,0.09270086,90859.0,90846.0,0.104701]
[1768123346430,0.01102,90859.0,90846.0,0.104701]
[1768123352734,0.17085744,90862.0,90844.0,0.011022]
[1768123352935,0.17085744,90862.0,90841.0,0.09577803]
[1768123352936,0.07550034,90859.0,90842.0,0.09368]
[1768123353736,0.011021,90847.0,90835.0,0.09368]
[1768123354738,0.011021,90849.0,90835.0,0.09368]
[1768123355036,0.07549777,90852.0,90835.0,0.09368]
[1768123355242,0.011021,90847.0,90835.0,0.09368]
[1768123355541,0.011021,90847.0,90833.0,0.011023]
[1768123355745,0.16251097,90843.0,90828.0,0.09610217]
[1768123355949,0.011022,90843.0,90828.0,0.09610217]
[1768123361240,0.07549777,90846.0,90828.0,0.09610217]
[1768123361241,0.07549777,90846.0,90828.0,0.00242217]
[1768123361449,0.011023,90837.0,90822.0,0.011024]
[1768123365836,0.2359693,90840.0,90822.0,0.011024]
[1768123367149,0.15148897,90840.0,90823.0,0.09151031]
[1768123367535,0.08300449,90843.0,90823.0,0.09151031]
[1768123367737,0.011022,90841.0,90825.0,0.011024]
[1768123368448,0.011022,90841.0,90827.0,0.011024]
[1768123368652,0.15148897,90840.0,90823.0,0.09151031]
[1768123368949,0.15148897,90840.0,90829.0,0.011024]
[1768123369555,0.07198249,90843.0,90829.0,0.011024]
[1768123369748,0.08300449,90843.0,90829.0,0.011024]
[1768123371149,0.08300449,90843.0,90830.0,0.011023]
[1768123371348,0.07198249,90843.0,90824.0,0.09151031]
[1768123371551,0.011022,90844.0,90831.0,0.011023]
[1768123373452,0.011022,90844.0,90832.0,0.011023]
[1768123375045,0.00550391,90845.0,90833.0,0.011023]
[1768123375951,0.011022,90844.0,90831.0,0.09151031]
[1768123377136,0.00550391,90845.0,90831.0,0.1832179]
[1768123377951,0.00550391,90845.0,90833.0,0.011023]
[1768123379953,0.00550391,90845.0,90833.0,0.19147092]
[1768123380157,0.00550391,90845.0,90830.0,0.10279601]
[1768123381555,0.00550391,90845.0,90831.0,0.011023]
[1768123383355,0.00550391,90845.0,90833.0,0.011023]
[1768123391449,0.00550391,90845.0,90835.0,0.011023]
[1768123397471,0.00550391,90845.0,90836.0,0.011023]
[1768123401374,0.00550391,90845.0,90832.0,0.09106864]
[1768123401572,0.00550391,90845.0,90832.0,0.18726062]
[1768123402175,0.00550391,90845.0,90836.0,0.011023]
[1768123405369,0.00550391,90845.0,90837.0,0.011022]
[1768123406578,0.00550391,90845.0,90835.0,0.09704564]
[1768123408075,0.00550391,90845.0,90835.0,0.10806864]
[1768123408283,0.00550391,90845.0,90837.0,0.011022]
[1768123408480,0.00550391,90845.0,90835.0,0.09006764]
[1768123409581,0.00550391,90845.0,90836.0,0.011023]
[1768123409883,0.09368,90846.0,90837.0,0.09619198]
[1768123415590,0.09368,90846.0,90837.0,0.06619198]
[1768123417288,0.09368,90846.0,90837.0,0.07721398]
[1768123420590,0.09368,90846.0,90837.0,0.011022]
[1768123422590,0.09368,90846.0,90833.0,0.08615222]
[1768123422789,0.09368,90846.0,90836.0,0.011023]
[1768123429700,0.09368,90846.0,90833.0,0.08217522]
[1768123430199,0.09368,90846.0,90836.0,0.011023]
[1768123431600,0.09368,90846.0,90838.0,0.011022]
[1768123435902,0.09368,90846.0,90836.0,0.011023]
[1768123436804,0.09368,90846.0,90837.0,0.011022]
[1768123444111,0.09368,90846.0,90837.0,0.006022]
[1768123445202,0.09368,90846.0,90827.0,0.09725814]
[1768123445401,0.18508865,90846.0,90834.0,0.011023]
[1768123446113,0.28381701,90846.0,90834.0,0.011023]
[1768123446309,0.29483901,90846.0,90831.0,0.011023]
[1768123446508,0.29483901,90846.0,90832.0,0.011023]
[1768123446710,0.28381701,90846.0,90833.0,0.011023]
[1768123447812,0.28381701,90846.0,90834.0,0.011023]
[1768123453019,0.28381701,90846.0,90835.0,0.011023]
[1768123455017,0.28381701,90846.0,90833.0,0.011023]
[1768123457922,0.09043869,90845.0,90833.0,0.011023]
[1768123461024,0.09043869,90845.0,90834.0,0.011023]
[1768123463627,0.09043869,90845.0,90835.0,0.011023]
[1768123471029,0.09043869,90845.0,90836.0,0.011023]
[1768123476138,0.18363074,90845.0,90827.0,0.009047]
[1768123478240,0.18363074,90845.0,90835.0,0.011023]
[1768123481539,0.09135442,90844.0,90835.0,0.011023]
[1768123483041,0.09135442,90844.0,90836.0,0.011023]
[1768123486240,0.09135442,90844.0,90827.0,0.011024]
[1768123486447,0.18454647,90844.0,90834.0,0.011023]
[1768123488144,0.09135442,90843.0,90834.0,0.011023]
[1768123488344,0.09135442,90843.0,90825.0,0.00550512]
[1768123488550,0.09135442,90843.0,90833.0,0.011023]
[1768123489349,0.011022,90842.0,90825.0,0.00550512]
[1768123489551,0.011022,90842.0,90831.0,0.011023]
[1768123489744,0.18454647,90843.0,90825.0,0.00550512]
[1768123490145,0.011022,90842.0,90825.0,0.00550512]
[1768123490350,0.18454647,90843.0,90825.0,0.00550512]
[1768123490648,0.18454647,90843.0,90833.0,0.011023]
[1768123491148,0.19556847,90843.0,90825.0,0.00550512]
[1768123491348,0.09135442,90842.0,90825.0,0.00550512]
[1768123491549,0.19556847,90842.0,90825.0,0.00550512]
[1768123491844,0.19556847,90840.0,90828.0,0.011024]
[1768123492050,0.18454647,90839.0,90829.0,0.011023]
[1768123493153,0.18454647,90839.0,90827.0,0.011024]
[1768123493752,0.18454647,90839.0,90828.0,0.011024]
[1768123494342,0.18454647,90839.0,90829.0,0.011023]
[1768123495356,0.18454647,90839.0,90830.0,0.011023]
[1768123495953,0.18454647,90838.0,90830.0,0.011023]
[1768123496148,0.09135442,90837.0,90830.0,0.011023]
[1768123497258,0.09319205,90838.0,90830.0,0.011023]
[1768123500162,0.09135442,90836.0,90825.0,0.00550512]
[1768123500357,0.18454647,90835.0,90825.0,0.00550512]
[1768123500563,0.18454647,90834.0,90825.0,0.00550512]
[1768123500960,0.18454647,90834.0,90826.0,0.011024]
[1768123502259,0.18454647,90834.0,90827.0,0.011024]
[1768123502461,0.09319205,90834.0,90829.0,0.011023]
[1768123503059,0.09135442,90837.0,90829.0,0.011023]
[1768123504357,0.19045,90837.0,90827.0,0.011024]
[1768123505450,0.19045,90837.0,90825.0,0.00550512]
[1768123505451,0.011023,90836.0,90825.0,0.00550512]
[1768123505655,0.20451473,90835.0,90825.0,0.00550512]
[1768123505963,0.19349173,90833.0,90822.0,0.011024]
[1768123506157,0.19349173,90833.0,90823.0,0.011024]
[1768123506158,0.09439615,90832.0,90823.0,0.011024]
[1768123511063,0.09439615,90832.0,90825.0,0.011024]
[1768123512164,0.09909558,90833.0,90825.0,0.011024]
[1768123512358,0.19806232,90833.0,90822.0,0.09368]
[1768123512565,0.19806232,90833.0,90823.0,0.011024]
[1768123512964,0.19806232,90833.0,90825.0,0.011024]
[1768123515066,0.20908532,90833.0,90823.0,0.011024]
[1768123515263,0.09896674,90824.0,90803.0,0.18208986]
[1768123515468,0.09952411,90821.0,90811.0,0.011026]
[1768123515670,0.09896674,90819.0,90811.0,0.011026]
[1768123516370,0.09896674,90819.0,90810.0,0.09368]
[1768123518372,0.09896674,90819.0,90811.0,0.011026]
[1768123518562,0.09896674,90819.0,90810.0,0.09368]
[1768123519266,0.19849085,90819.0,90814.0,0.011025]
[1768123519774,0.19849085,90819.0,90811.0,0.011026]
[1768123520568,0.19849085,90819.0,90812.0,0.011025]
[1768123523072,0.19849085,90819.0,90813.0,0.011025]
[1768123523982,0.09952411,90816.0,90810.0,0.09368]
[1768123524166,0.09952411,90816.0,90812.0,0.011025]
[1768123527576,0.09952411,90814.0,90803.0,0.09368]
[1768123527976,0.09952411,90814.0,90809.0,0.011026]
[1768123533176,0.09952411,90814.0,90803.0,0.09368]
[1768123533474,0.09952411,90814.0,90808.0,0.011026]
[1768123533680,0.09952411,90814.0,90803.0,0.09368]
[1768123534275,0.09952411,90814.0,90798.0,0.00242297]
[1768123534482,0.09440158,90812.0,90798.0,0.00242297]
[1768123534881,0.09440158,90812.0,90802.0,0.011027]
[1768123535383,0.09440158,90812.0,90804.0,0.011027]
[1768123536584,0.09440158,90812.0,90800.0,0.011027]
[1768123539482,0.10542758,90812.0,90800.0,0.011027]
[1768123541485,0.09440158,90812.0,90802.0,0.011027]
[1768123541685,0.09440158,90812.0,90798.0,0.00242297]
[1768123543184,0.09440158,90812.0,90800.0,0.011027]
[1768123543185,0.10542758,90812.0,90800.0,0.011027]
[1768123543379,0.09440158,90812.0,90798.0,0.00242297]
[1768123545286,0.09440158,90812.0,90802.0,0.011027]
[1768123545483,0.09440158,90812.0,90803.0,0.011027]
[1768123545988,0.09440158,90812.0,90798.0,0.00242297]
[1768123546290,0.09440158,90810.0,90800.0,0.011027]
[1768123547191,0.09440158,90810.0,90801.0,0.011027]
[1768123549801,0.09440158,90810.0,90802.0,0.011027]
[1768123551999,0.09440158,90810.0,90803.0,0.011027]
[1768123568422,0.09440158,90810.0,90800.0,0.011027]
[1768123568616,0.09440158,90810.0,90801.0,0.011027]
[1768123569924,0.011026,90809.0,90798.0,0.00242297]
[1768123570117,0.011026,90809.0,90789.0,0.10484249]
[1768123570118,0.09195364,90808.0,90789.0,8.738e-05]
[1768123570422,0.09195364,90806.0,90790.0,0.09372]
[1768123570610,0.09195364,90806.0,90789.0,8.738e-05]
[1768123570917,0.10297964,90806.0,90794.0,0.011028]
[1768123571520,0.10297964,90806.0,90793.0,0.011028]
[1768123571820,0.09195364,90806.0,90796.0,0.011027]
[1768123572017,0.09195364,90806.0,90790.0,0.09372]
[1768123572714,0.09195364,90806.0,90797.0,0.011027]
[1768123576315,0.10297964,90806.0,90789.0,8.738e-05]
[1768123576516,0.10297964,90806.0,90789.0,0.09380738]
[1768123577323,0.09195364,90806.0,90795.0,0.011028]
[1768123579228,0.10297964,90806.0,90793.0,0.011028]
[1768123580334,0.10297964,90806.0,90795.0,0.011028]
[1768123583130,0.09195364,90806.0,90795.0,0.011028]
[1768123583331,0.09195364,90806.0,90796.0,0.011027]
[1768123585834,0.09195364,90806.0,90794.0,0.011028]
[1768123586929,0.09195364,90806.0,90789.0,8.738e-05]
[1768123587329,0.011027,90804.0,90792.0,0.011028]
[1768123587631,0.09195364,90806.0,90794.0,0.011028]
[1768123589531,0.011026,90805.0,90794.0,0.011028]
[1768123591136,0.09195364,90806.0,90794.0,0.011028]
[1768123591332,0.09195364,90806.0,90797.0,0.011027]
[1768123593433,0.09195364,90806.0,90798.0,0.011027]
[1768123594036,0.09195364,90806.0,90795.0,0.011028]
[1768123594229,0.09195364,90806.0,90798.0,0.011027]
[1768123594435,0.09195364,90806.0,90799.0,0.011027]
[1768123608354,0.09195364,90806.0,90790.0,0.011028]
[1768123608558,0.011025,90815.0,90802.0,0.011027]
[1768123608759,0.09244773,90816.0,90795.0,0.09915057]
[1768123608960,0.011026,90813.0,90792.0,0.19486615]
[1768123609153,0.10347373,90813.0,90800.0,0.011027]